[Event "EYTCC U12 Open 2019"]
[Site "Pardubice"]
[Date "2019.07.12"]
[Round "2.4"]
[White "Trivedi, Aarnavh"]
[Black "Bat, Bilguun"]
[Result "0-1"]
[ECO "A45"]
[WhiteElo "1669"]
[BlackElo "2093"]
[Annotator "NA"]
[PlyCount "102"]
[EventDate "2019.07.11"]
[EventType "swiss"]
[EventCountry "CZE"]
[SourceTitle "playchess.com"]
[Source "ChessBase"]
[SourceQuality "1"]
[WhiteTeam "England"]
[BlackTeam "France"]
[WhiteTeamCountry "ENG"]
[BlackTeamCountry "FRA"]
[TimeControl "40/5400+30:1800+30"]

1. d4 {[%emt 0:00:00]} Nf6 {[%emt 0:00:00]} 2. Bg5 {[%emt 0:00:00]} d5 {[%emt 0:00:00]} 3. Bxf6 {[%emt 0:00:00]} exf6 {[%emt 0:00:00]} 4. e3 {[%emt 0:00:13]} Bd6 {[%emt 0:00:12]} 5. g3 {[%emt 0:01:34]} O-O {[%emt 0:00:19]} 6. Bg2 {[%emt 0:00:28]} f5 {[%emt 0:00:11]} 7. Ne2 {[%emt 0:00:33]} c6 {[%emt 0:00:18]} 8. O-O {[%emt 0:01:33]} Nd7 {[%emt 0:00:16]} 9. Qd3 {[%emt 0:01:31]} Nf6 {[%emt 0:00:19]} 10. c4 {[%emt 0:06:28]} dxc4 {[%emt 0:02:05]} 11. Qxc4 {[%emt 0:00:22]} Be6 {[%emt 0:00:13]} 12. Qd3 {[%emt 0:00:13]} g6 {[%emt 0:02:09]} 13. Nbc3 {[%emt 0:02:39]} Bc7 {[%emt 0:06:03]} 14. Rfd1 {[%emt 0:04:13]} Qe7 {[%emt 0:01:02]} 15. Qc2 {[%emt 0:05:15]} Rad8 {[%emt 0:02:29]} 16. a3 {[%emt 0:07:13]} h5 {[%emt 0:04:12]} 17. b4 {[%emt 0:04:48]} h4 {[%emt 0:08:06]} 18. b5 {[%emt 0:06:40]} hxg3 {[%emt 0:01:19]} 19. hxg3 {[%emt 0:01:02]} Ng4 {[%emt 0:15:51]} 20. bxc6 {[%emt 0:06:03]} bxc6 {[%emt 0:00:57]} 21. Bxc6 {[%emt 0:03:11]} Qg5 {[%emt 0:06:54]} 22. Kg2 {[%emt 0:08:57]} Qxe3 {[%emt 0:14:10]} 23. fxe3 {[%emt 0:08:56]} Nxe3+ {[%emt 0:00:06]} 24. Kf3 {[%emt 0:00:39]} Nxc2 {[%emt 0:00:08]} 25. Rac1 {[%emt 0:00:29]} Nxa3 {[%emt 0:01:18]} 26. d5 {[%emt 0:00:26]} Bd7 {[%emt 0:05:11]} 27. Nd4 {[%emt 0:02:23]} Bb6 {[%emt 0:03:11]} 28. Bxd7 {[%emt 0:08:16]} Rxd7 {[%emt 0:00:51]} 29. Nc6 {[%emt 0:00:36]} Re8 {[%emt 0:05:21]} 30. Re1 {[%emt 0:01:12]} Rxe1 {[%emt 0:00:19]} 31. Rxe1 {[%emt 0:00:36]} Nc4 {[%emt 0:02:01]} 32. Kf4 {[%emt 0:03:25]} Bc7+ {[%emt 0:04:49]} 33. Kf3 {[%emt 0:04:35]} Kg7 {[%emt 0:02:28]} 34. Nxa7 {[%emt 0:05:58]} Bxg3 {[%emt 0:01:53]} 35. Nab5 {[%emt 0:01:42]} Bxe1 {[%emt 0:00:20]} 36. Ke2 {[%emt 0:00:50]} Bxc3 {[%emt 0:00:08]} 37. Nxc3 {[%emt 0:00:13]} Nb6 {[%emt 0:00:10]} 38. Kf3 {[%emt 0:00:55]} Nxd5 {[%emt 0:00:09]} 39. Ne2 {[%emt 0:00:27]} g5 {[%emt 0:00:04]} 40. Kg3 {[%emt 0:00:10]} Re7 {[%emt 0:00:05]} 41. Nd4 {[%emt 0:30:06]} Re3+ {[%emt 0:30:05]} 42. Kf2 {[%emt 0:00:11]} Kf6 {[%emt 0:00:01]} 43. Nc2 {[%emt 0:00:13]} Rh3 {[%emt 0:00:11]} 44. Ne1 {[%emt 0:00:16]} Ke5 {[%emt 0:00:06]} 45. Kg2 {[%emt 0:00:17]} Nf4+ {[%emt 0:00:03]} 46. Kf1 {[%emt 0:00:20]} Rc3 {[%emt 0:00:08]} 47. Kf2 {[%emt 0:00:09]} Ke4 {[%emt 0:00:04]} 48. Kf1 {[%emt 0:00:12]} Rc1 {[%emt 0:00:15]} 49. Kf2 {[%emt 0:00:07]} g4 {[%emt 0:00:03]} 50. Kf1 {[%emt 0:01:04]} g3 {[%emt 0:00:14]} 51. Kg1 {[%emt 0:00:09]} Rxe1# {[%emt 0:00:04]} 0-1

[Event "EYTCC U12 Open 2019"]
[Site "Pardubice"]
[Date "2019.07.12"]
[Round "2.5"]
[White "Fiszer, Bartosz"]
[Black "Strybuk, Artsiom I"]
[Result "1-0"]
[ECO "C65"]
[WhiteElo "2124"]
[BlackElo "2193"]
[Annotator "NA"]
[PlyCount "148"]
[EventDate "2019.07.11"]
[EventType "swiss"]
[EventCountry "CZE"]
[SourceTitle "playchess.com"]
[Source "ChessBase"]
[SourceQuality "1"]
[WhiteTeam "Poland"]
[BlackTeam "Belarus"]
[WhiteTeamCountry "POL"]
[BlackTeamCountry "BLR"]
[TimeControl "40/5400+30:1800+30"]

1. e4 {[%emt 0:00:00]} e5 {[%emt 0:00:43]} 2. Nf3 {[%emt 0:00:00]} Nc6 {[%emt 0:00:13]} 3. Bb5 {[%emt 0:00:00]} Nf6 {[%emt 0:00:25]} 4. d3 {[%emt 0:00:12]} Bc5 {[%emt 0:00:10]} 5. Bxc6 {[%emt 0:00:10]} dxc6 {[%emt 0:00:27]} 6. h3 {[%emt 0:00:14]} Be6 {[%emt 0:13:19]} 7. Nc3 {[%emt 0:07:13]} Nd7 {[%emt 0:07:10]} 8. Ng5 {[%emt 0:01:41]} Qe7 {[%emt 0:00:29]} 9. Qe2 {[%emt 0:05:24]} Nf8 {[%emt 0:04:24]} 10. Be3 {[%emt 0:03:44]} Bd7 {[%emt 0:11:17]} 11. O-O-O {[%emt 0:01:30]} Ng6 {[%emt 0:06:52]} 12. g3 {[%emt 0:07:08]} Bd4 {[%emt 0:03:32]} 13. Qd2 {[%emt 0:03:28]} Qf6 {[%emt 0:02:18]} 14. h4 {[%emt 0:03:20]} h6 {[%emt 0:00:47]} 15. Nh3 {[%emt 0:00:28]} Bg4 {[%emt 0:05:56]} 16. Rde1 {[%emt 0:01:48]} O-O-O {[%emt 0:04:02]} 17. Ng1 {[%emt 0:05:28]} Kb8 {[%emt 0:06:17]} 18. f3 {[%emt 0:02:54]} Bc8 {[%emt 0:00:17]} 19. h5 {[%emt 0:02:17]} Ne7 {[%emt 0:01:33]} 20. Bxd4 {[%emt 0:00:36]} exd4 {[%emt 0:00:33]} 21. Nd1 {[%emt 0:01:00]} c5 {[%emt 0:01:16]} 22. Kb1 {[%emt 0:01:44]} Nc6 {[%emt 0:00:46]} 23. f4 {[%emt 0:01:55]} Be6 {[%emt 0:09:45]} 24. b3 {[%emt 0:01:33]} c4 {[%emt 0:10:29]} 25. dxc4 {[%emt 0:02:21]} Qe7 {[%emt 0:01:24]} 26. Nb2 {[%emt 0:01:11]} Rhe8 {[%emt 0:04:17]} 27. Nd3 {[%emt 0:00:36]} a5 {[%emt 0:02:11]} 28. f5 {[%emt 0:01:14]} Bc8 {[%emt 0:00:05]} 29. Nf3 {[%emt 0:00:11]} a4 {[%emt 0:00:18]} 30. g4 {[%emt 0:01:03]} b6 {[%emt 0:01:29]} 31. Rh2 {[%emt 0:00:55]} Bb7 {[%emt 0:01:09]} 32. Rhe2 {[%emt 0:00:40]} Na5 {[%emt 0:00:30]} 33. Qb4 {[%emt 0:02:25]} Qxb4 {[%emt 0:00:48]} 34. Nxb4 {[%emt 0:00:01]} axb3 {[%emt 0:00:47]} 35. axb3 {[%emt 0:00:06]} Rd7 {[%emt 0:00:54]} 36. Nd3 {[%emt 0:11:19]} f6 {[%emt 0:00:31]} 37. Nh4 {[%emt 0:01:10]} Nc6 {[%emt 0:00:33]} 38. Ng6 {[%emt 0:00:34]} Ne5 {[%emt 0:00:19]} 39. Ngxe5 {[%emt 0:00:23]} fxe5 {[%emt 0:00:07]} 40. g5 {[%emt 0:00:30]} Rd6 {[%emt 0:00:52]} 41. g6 {[%emt 0:37:04]} Kc8 {[%emt 0:04:52]} 42. Kc1 {[%emt 0:00:00]} Kd7 {[%emt 0:01:37]} 43. Kd2 {[%emt 0:00:00]} Rf6 {[%emt 0:00:57]} 44. Nf2 {[%emt 0:00:00]} Rff8 {[%emt 0:00:59]} 45. Ng4 {[%emt 0:00:00]} Bc8 {[%emt 0:00:51]} 46. Rf2 {[%emt 0:00:00]} Kd6 {[%emt 0:01:04]} 47. Kd3 {[%emt 0:00:00]} Bd7 {[%emt 0:01:38]} 48. Ra1 {[%emt 0:00:00]} Ra8 {[%emt 0:02:23]} 49. Rxa8 {[%emt 0:00:00]} Rxa8 {[%emt 0:00:01]} 50. Rf1 {[%emt 0:00:00]} Rb8 {[%emt 0:06:23]} 51. Ra1 {[%emt 0:00:00]} Rf8 {[%emt 0:00:06]} 52. Kd2 {[%emt 0:00:00]} Rb8 {[%emt 0:07:48]} 53. Ra7 {[%emt 0:00:00]} Rf8 {[%emt 0:01:05]} 54. b4 {[%emt 0:00:00]} Bxf5 {[%emt 0:01:12]} 55. exf5 {[%emt 0:00:00]} Rxf5 {[%emt 0:00:04]} 56. c5+ {[%emt 0:00:00]} bxc5 {[%emt 0:00:29]} 57. bxc5+ {[%emt 0:00:00]} Kd7 {[%emt 0:00:14]} 58. Ra8 {[%emt 0:00:00]} Rg5 {[%emt 0:05:23]} 59. Nf2 {[%emt 0:00:00]} Rxh5 {[%emt 0:01:49]} 60. Rg8 {[%emt 0:00:00]} Rh2 {[%emt 0:00:42]} 61. Rxg7+ {[%emt 0:00:00]} Ke6 {[%emt 0:00:12]} 62. Ke1 {[%emt 0:00:00]} Kf6 {[%emt 0:00:53]} 63. Rg8 {[%emt 0:00:00]} Rg2 {[%emt 0:00:35]} 64. Ke2 {[%emt 0:02:25]} e4 {[%emt 0:00:57]} 65. Kf1 {[%emt 0:00:02]} Rxg6 {[%emt 0:00:05]} 66. Nxe4+ {[%emt 0:00:11]} Kf5 {[%emt 0:00:14]} 67. Nd6+ {[%emt 0:00:55]} Kg5 {[%emt 0:00:45]} 68. Rxg6+ {[%emt 0:00:08]} Kxg6 {[%emt 0:00:01]} 69. Nb5 {[%emt 0:00:09]} Kf5 {[%emt 0:00:38]} 70. Nxc7 {[%emt 0:00:09]} Ke5 {[%emt 0:00:05]} 71. Nb5 {[%emt 0:00:11]} Kd5 {[%emt 0:00:07]} 72. Nxd4 {[%emt 0:00:09]} Kxc5 {[%emt 0:00:04]} 73. Nf5 {[%emt 0:00:12]} Kc4 {[%emt 0:00:19]} 74. Ke2 {[%emt 0:00:03]} Kd5 1-0

[Event "EYTCC U12 Open 2019"]
[Site "Pardubice"]
[Date "2019.07.12"]
[Round "2.6"]
[White "Navumenka, Mikhei"]
[Black "Seemann, Jakub"]
[Result "1-0"]
[ECO "D70"]
[WhiteElo "2196"]
[BlackElo "2017"]
[Annotator "NA"]
[PlyCount "95"]
[EventDate "2019.07.11"]
[EventType "swiss"]
[EventCountry "CZE"]
[SourceTitle "playchess.com"]
[Source "ChessBase"]
[SourceQuality "1"]
[WhiteTeam "Belarus"]
[BlackTeam "Poland"]
[WhiteTeamCountry "BLR"]
[BlackTeamCountry "POL"]
[TimeControl "40/5400+30:1800+30"]

1. d4 {[%emt 0:00:00]} Nf6 {[%emt 0:00:00]} 2. c4 {[%emt 0:00:00]} g6 {[%emt 0:00:00]} 3. Nf3 {[%emt 0:00:00]} Bg7 {[%emt 0:00:00]} 4. g3 {[%emt 0:00:00]} O-O {[%emt 0:00:10]} 5. Bg2 {[%emt 0:00:03]} c5 {[%emt 0:00:08]} 6. d5 {[%emt 0:04:33]} d6 {[%emt 0:00:06]} 7. Nc3 {[%emt 0:00:07]} e6 {[%emt 0:00:06]} 8. O-O {[%emt 0:00:31]} exd5 {[%emt 0:00:10]} 9. cxd5 {[%emt 0:01:17]} Re8 {[%emt 0:00:15]} 10. Bf4 {[%emt 0:07:34]} a6 {[%emt 0:01:36]} 11. a4 {[%emt 0:01:07]} Ne4 {[%emt 0:00:19]} 12. Nxe4 {[%emt 0:02:20]} Rxe4 {[%emt 0:00:35]} 13. Nd2 {[%emt 0:00:05]} Rb4 {[%emt 0:00:09]} 14. Ra2 {[%emt 0:09:18]} Qe7 {[%emt 0:05:14]} 15. b3 {[%emt 0:02:53]} Be5 {[%emt 0:04:27]} 16. Bxe5 {[%emt 0:04:10]} Qxe5 {[%emt 0:00:06]} 17. Nc4 {[%emt 0:00:11]} Qe7 {[%emt 0:00:19]} 18. e4 {[%emt 0:02:23]} Nd7 {[%emt 0:01:13]} 19. f4 {[%emt 0:03:46]} f6 {[%emt 0:04:11]} 20. Re1 {[%emt 0:04:34]} Nb6 {[%emt 0:02:22]} 21. Ne3 {[%emt 0:07:09]} a5 {[%emt 0:05:09]} 22. Qd3 {[%emt 0:07:43]} Bd7 {[%emt 0:03:28]} 23. Rae2 {[%emt 0:02:42]} c4 {[%emt 0:03:21]} 24. Nxc4 {[%emt 0:00:32]} Nxc4 {[%emt 0:00:08]} 25. bxc4 {[%emt 0:00:05]} Rc8 {[%emt 0:00:59]} 26. h4 {[%emt 0:11:57]} Rbxc4 {[%emt 0:01:20]} 27. e5 {[%emt 0:02:02]} Rc3 {[%emt 0:08:34]} 28. Qd4 {[%emt 0:00:49]} R3c4 {[%emt 0:08:04]} 29. Qb6 {[%emt 0:03:19]} fxe5 {[%emt 0:05:58]} 30. fxe5 {[%emt 0:00:36]} Rc2 {[%emt 0:12:20]} 31. Rxc2 {[%emt 0:10:33]} Rxc2 {[%emt 0:00:05]} 32. Qxd6 {[%emt 0:00:02]} Qxd6 {[%emt 0:01:19]} 33. exd6 {[%emt 0:00:01]} Rc8 {[%emt 0:03:02]} 34. Rb1 {[%emt 0:06:08]} Bxa4 {[%emt 0:00:41]} 35. Rxb7 {[%emt 0:00:19]} Rd8 {[%emt 0:00:12]} 36. Ra7 {[%emt 0:00:16]} Rxd6 {[%emt 0:00:12]} 37. Rxa5 {[%emt 0:00:02]} Bb3 {[%emt 0:00:21]} 38. Kf2 {[%emt 0:00:08]} Kf7 {[%emt 0:01:02]} 39. Ke3 {[%emt 0:00:14]} Kf6 {[%emt 0:00:42]} 40. Kd4 {[%emt 0:00:03]} Kf5 {[%emt 0:04:33]} 41. Bh3+ {[%emt 0:32:39]} Kf6 {[%emt 0:30:05]} 42. Bg2 {[%emt 0:00:05]} Kf5 {[%emt 0:00:04]} 43. Bf3 {[%emt 0:00:33]} h6 {[%emt 0:01:41]} 44. Be4+ {[%emt 0:04:35]} Kg4 {[%emt 0:01:37]} 45. Ra3 {[%emt 0:00:29]} Bd1 {[%emt 0:02:51]} 46. Ke5 {[%emt 0:00:14]} Rd8 {[%emt 0:00:06]} 47. Bxg6 {[%emt 0:00:35]} Bf3 {[%emt 0:01:07]} 48. Bh5+ 1-0

[Event "EYTCC U12 Open 2019"]
[Site "Pardubice"]
[Date "2019.07.12"]
[Round "2.7"]
[White "Meers, Hubert"]
[Black "Bialiauski, Artsiom"]
[Result "1/2-1/2"]
[ECO "C91"]
[WhiteElo "2141"]
[BlackElo "1784"]
[Annotator "NA"]
[PlyCount "160"]
[EventDate "2019.07.11"]
[EventType "swiss"]
[EventCountry "CZE"]
[SourceTitle "playchess.com"]
[Source "ChessBase"]
[SourceQuality "1"]
[WhiteTeam "Poland"]
[BlackTeam "Belarus"]
[WhiteTeamCountry "POL"]
[BlackTeamCountry "BLR"]
[TimeControl "40/5400+30:1800+30"]

1. e4 {[%emt 0:00:00]} e5 {[%emt 0:00:00]} 2. Nf3 {[%emt 0:00:00]} Nc6 {[%emt 0:00:00]} 3. Bb5 {[%emt 0:00:00]} a6 {[%emt 0:00:06]} 4. Ba4 {[%emt 0:00:00]} Nf6 {[%emt 0:00:07]} 5. O-O {[%emt 0:00:00]} Be7 {[%emt 0:00:08]} 6. Re1 {[%emt 0:00:10]} b5 {[%emt 0:00:05]} 7. Bb3 {[%emt 0:00:05]} d6 {[%emt 0:00:07]} 8. c3 {[%emt 0:00:06]} O-O {[%emt 0:00:10]} 9. d4 {[%emt 0:00:04]} Bg4 {[%emt 0:00:20]} 10. Be3 {[%emt 0:00:09]} exd4 {[%emt 0:02:07]} 11. cxd4 {[%emt 0:00:10]} Na5 {[%emt 0:00:07]} 12. Bc2 {[%emt 0:00:06]} c5 {[%emt 0:01:12]} 13. Nbd2 {[%emt 0:06:57]} Nc6 {[%emt 0:09:13]} 14. d5 {[%emt 0:01:33]} Ne5 {[%emt 0:02:19]} 15. h3 {[%emt 0:00:49]} Bxf3 {[%emt 0:02:52]} 16. Nxf3 {[%emt 0:00:46]} Nc4 {[%emt 0:05:52]} 17. Bc1 {[%emt 0:00:16]} Nd7 {[%emt 0:00:12]} 18. b3 {[%emt 0:05:54]} Bf6 {[%emt 0:02:00]} 19. Rb1 {[%emt 0:00:32]} Nce5 {[%emt 0:00:04]} 20. Nxe5 {[%emt 0:04:28]} dxe5 {[%emt 0:00:46]} 21. Re3 {[%emt 0:08:22]} Nb6 {[%emt 0:03:56]} 22. Qg4 {[%emt 0:05:34]} g6 {[%emt 0:02:59]} 23. Rc3 {[%emt 0:04:24]} Rc8 {[%emt 0:14:28]} 24. Be3 {[%emt 0:01:34]} Qd6 {[%emt 0:06:54]} 25. Bd1 {[%emt 0:02:39]} Rc7 {[%emt 0:00:27]} 26. Qg3 {[%emt 0:02:47]} Be7 {[%emt 0:16:30]} 27. Rbc1 {[%emt 0:02:11]} c4 {[%emt 0:00:23]} 28. Bxb6 {[%emt 0:03:49]} Qxb6 {[%emt 0:00:10]} 29. bxc4 {[%emt 0:00:04]} b4 {[%emt 0:00:24]} 30. Rb3 {[%emt 0:07:47]} Qd4 {[%emt 0:03:38]} 31. Qd3 {[%emt 0:00:39]} Qxd3 {[%emt 0:02:33]} 32. Rxd3 {[%emt 0:00:04]} Bg5 {[%emt 0:00:10]} 33. d6 {[%emt 0:05:48]} Rc5 {[%emt 0:05:13]} 34. Rc2 {[%emt 0:01:19]} Rfc8 {[%emt 0:00:30]} 35. d7 {[%emt 0:01:23]} Rd8 {[%emt 0:00:57]} 36. Be2 {[%emt 0:07:44]} Be7 {[%emt 0:03:26]} 37. Rd5 {[%emt 0:03:36]} Rxd5 {[%emt 0:02:06]} 38. cxd5 {[%emt 0:00:07]} Rxd7 {[%emt 0:00:04]} 39. Bxa6 {[%emt 0:00:06]} Bd6 {[%emt 0:02:03]} 40. Rc6 {[%emt 0:11:25]} Kf8 {[%emt 0:00:42]} 41. Bc4 {[%emt 0:31:11]} Ke7 {[%emt 0:31:11]} 42. Bb3 {[%emt 0:00:39]} Rc7 {[%emt 0:00:36]} 43. Ra6 {[%emt 0:00:22]} Rc1+ {[%emt 0:00:10]} 44. Kh2 {[%emt 0:00:12]} Rc7 {[%emt 0:00:14]} 45. g4 {[%emt 0:00:28]} h6 {[%emt 0:02:21]} 46. Ra8 {[%emt 0:01:13]} Kf6 {[%emt 0:00:12]} 47. Rh8 {[%emt 0:01:14]} Rd7 {[%emt 0:01:48]} 48. h4 {[%emt 0:04:39]} Rc7 {[%emt 0:02:51]} 49. Kg3 {[%emt 0:06:55]} Rc3+ {[%emt 0:01:03]} 50. Kg2 {[%emt 0:00:04]} Rc7 {[%emt 0:00:11]} 51. h5 {[%emt 0:00:27]} Rd7 {[%emt 0:03:04]} 52. Kf3 {[%emt 0:02:23]} Rc7 {[%emt 0:04:05]} 53. Kg3 {[%emt 0:00:05]} Rc3+ {[%emt 0:00:45]} 54. Kg2 {[%emt 0:00:06]} Rc7 {[%emt 0:00:09]} 55. hxg6 {[%emt 0:00:15]} Kxg6 {[%emt 0:01:14]} 56. Rd8 {[%emt 0:00:00]} Be7 {[%emt 0:00:00]} 57. Ra8 {[%emt 0:00:00]} Rd7 {[%emt 0:00:00]} 58. Ba4 {[%emt 0:00:00]} Rd8 {[%emt 0:00:00]} 59. Ra6+ {[%emt 0:00:00]} Bd6 {[%emt 0:00:00]} 60. Kg3 {[%emt 0:00:00]} h5 {[%emt 0:00:00]} 61. Bd1 {[%emt 0:00:00]} hxg4 {[%emt 0:00:00]} 62. Bxg4 {[%emt 0:00:00]} Kg5 {[%emt 0:00:00]} 63. Ra7 {[%emt 0:00:00]} Kf6 {[%emt 0:00:00]} 64. Bh5 {[%emt 0:00:00]} Be7 {[%emt 0:00:00]} 65. f4 {[%emt 0:00:00]} exf4+ {[%emt 0:00:00]} 66. Kxf4 {[%emt 0:00:00]} Bd6+ {[%emt 0:00:00]} 67. Kf3 {[%emt 0:00:00]} Ke5 {[%emt 0:00:00]} 68. Bxf7 {[%emt 0:00:00]} Rf8 {[%emt 0:00:00]} 69. Rb7 {[%emt 0:00:00]} Ra8 {[%emt 0:00:00]} 70. Bg6 {[%emt 0:00:00]} Rxa2 {[%emt 0:00:00]} 71. Ke3 {[%emt 0:00:00]} Ra3+ {[%emt 0:00:00]} 72. Kd2 {[%emt 0:00:00]} Rc3 {[%emt 0:00:00]} 73. Bf5 {[%emt 0:00:00]} Kd4 {[%emt 0:00:00]} 74. Kd1 {[%emt 0:01:04]} b3 {[%emt 0:00:00]} 75. Bd7 {[%emt 0:03:39]} Kxe4 {[%emt 0:05:11]} 76. Ba4 {[%emt 0:00:09]} Kxd5 {[%emt 0:00:03]} 77. Rxb3 {[%emt 0:00:14]} Rc4 {[%emt 0:01:46]} 78. Rd3+ {[%emt 0:00:17]} Kc5 {[%emt 0:01:34]} 79. Bb3 {[%emt 0:00:08]} Rh4 {[%emt 0:00:37]} 80. Kc2 {[%emt 0:00:06]} Rh2+ {[%emt 0:00:34]} 1/2-1/2

[Event "EYTCC U12 Open 2019"]
[Site "Pardubice"]
[Date "2019.07.12"]
[Round "2.8"]
[White "Piatrenka, Ivan"]
[Black "Klimkowski, Jan"]
[Result "0-1"]
[ECO "A45"]
[WhiteElo "1498"]
[BlackElo "1985"]
[Annotator "NA"]
[PlyCount "52"]
[EventDate "2019.07.11"]
[EventType "swiss"]
[EventCountry "CZE"]
[SourceTitle "playchess.com"]
[Source "ChessBase"]
[SourceQuality "1"]
[WhiteTeam "Belarus"]
[BlackTeam "Poland"]
[WhiteTeamCountry "BLR"]
[BlackTeamCountry "POL"]
[TimeControl "40/5400+30:1800+30"]

1. d4 {[%emt 0:00:00]} Nf6 {[%emt 0:00:00]} 2. Bf4 {[%emt 0:00:00]} g6 {[%emt 0:00:00]} 3. e3 {[%emt 0:00:00]} Bg7 {[%emt 0:00:00]} 4. Nf3 {[%emt 0:00:00]} O-O {[%emt 0:00:02]} 5. c4 {[%emt 0:00:12]} d6 {[%emt 0:02:35]} 6. h3 {[%emt 0:00:07]} Nfd7 {[%emt 0:01:44]} 7. Nc3 {[%emt 0:02:25]} Nc6 {[%emt 0:01:22]} 8. Be2 {[%emt 0:00:37]} e5 {[%emt 0:00:55]} 9. dxe5 {[%emt 0:01:52]} Ndxe5 {[%emt 0:01:00]} 10. O-O {[%emt 0:01:08]} Be6 {[%emt 0:03:04]} 11. Nd5 {[%emt 0:04:17]} Nxf3+ {[%emt 0:02:16]} 12. Bxf3 {[%emt 0:00:03]} Ne5 {[%emt 0:00:19]} 13. Bxe5 {[%emt 0:07:58]} Bxe5 {[%emt 0:01:28]} 14. Bg4 {[%emt 0:10:01]} f5 {[%emt 0:04:34]} 15. Be2 {[%emt 0:00:18]} c6 {[%emt 0:02:43]} 16. Nc3 {[%emt 0:05:08]} f4 {[%emt 0:05:05]} 17. Ne4 {[%emt 0:42:40]} fxe3 {[%emt 0:05:26]} 18. fxe3 {[%emt 0:00:15]} Qh4 {[%emt 0:01:49]} 19. Bf3 {[%emt 0:03:54]} Bxc4 {[%emt 0:02:16]} 20. Rf2 {[%emt 0:00:39]} d5 {[%emt 0:02:05]} 21. Nc5 {[%emt 0:01:49]} Qg3 {[%emt 0:00:57]} 22. Nd3 {[%emt 0:00:49]} Qh2+ {[%emt 0:01:27]} 23. Kf1 {[%emt 0:00:01]} Bxd3+ {[%emt 0:00:43]} 24. Qxd3 {[%emt 0:00:08]} Qh1+ {[%emt 0:00:05]} 25. Ke2 {[%emt 0:00:06]} Qxa1 {[%emt 0:00:18]} 26. Bxd5+ {[%emt 0:00:17]} Kh8 {[%emt 0:00:20]} 0-1

[Event "EYTCC U12 Open 2019"]
[Site "Pardubice"]
[Date "2019.07.12"]
[Round "2.9"]
[White "Day, Tobias"]
[Black "Tancsa, Tamas"]
[Result "0-1"]
[ECO "C55"]
[WhiteElo "1826"]
[BlackElo "2126"]
[Annotator "NA"]
[PlyCount "52"]
[EventDate "2019.07.11"]
[EventType "swiss"]
[EventCountry "CZE"]
[SourceTitle "playchess.com"]
[Source "ChessBase"]
[SourceQuality "1"]
[WhiteTeam "Czech Republic"]
[BlackTeam "Hungary"]
[WhiteTeamCountry "CZE"]
[BlackTeamCountry "HUN"]
[TimeControl "40/5400+30:1800+30"]

1. e4 {[%emt 0:00:00]} e5 {[%emt 0:00:00]} 2. Nf3 {[%emt 0:00:00]} Nc6 {[%emt 0:00:00]} 3. Bc4 {[%emt 0:00:00]} Nf6 {[%emt 0:00:04]} 4. d3 {[%emt 0:00:45]} h6 {[%emt 0:00:08]} 5. c3 {[%emt 0:00:56]} d6 {[%emt 0:00:18]} 6. b4 {[%emt 0:02:52]} g5 {[%emt 0:02:16]} 7. a4 {[%emt 0:04:45]} g4 {[%emt 0:10:35]} 8. Nfd2 {[%emt 0:05:03]} d5 {[%emt 0:03:24]} 9. exd5 {[%emt 0:01:32]} Nxd5 {[%emt 0:00:27]} 10. Qb3 {[%emt 0:03:08]} Be6 {[%emt 0:02:26]} 11. Ne4 {[%emt 0:05:16]} Be7 {[%emt 0:01:17]} 12. Na3 {[%emt 0:08:16]} a5 {[%emt 0:13:22]} 13. b5 {[%emt 0:11:31]} Nb8 {[%emt 0:00:28]} 14. Nc2 {[%emt 0:05:11]} f5 {[%emt 0:03:52]} 15. Ng3 {[%emt 0:01:06]} Nd7 {[%emt 0:00:27]} 16. d4 {[%emt 0:15:55]} N7b6 {[%emt 0:01:45]} 17. Na3 {[%emt 0:13:26]} Nxc4 {[%emt 0:04:58]} 18. Qxc4 {[%emt 0:00:42]} exd4 19. cxd4 {[%emt 0:01:16]} Nf4 {[%emt 0:00:53]} 20. Qc2 {[%emt 0:05:41]} Bb4+ {[%emt 0:06:04]} 21. Kf1 {[%emt 0:02:57]} Qxd4 {[%emt 0:01:32]} 22. Bb2 {[%emt 0:04:45]} Qd5 {[%emt 0:00:16]} 23. Rg1 {[%emt 0:01:03]} Bxa3 {[%emt 0:01:08]} 24. Bxa3 {[%emt 0:01:06]} O-O-O {[%emt 0:03:04]} 25. Rc1 {[%emt 0:02:49]} Qc4+ {[%emt 0:00:10]} 26. Ke1 {[%emt 0:01:37]} Nd3+ {[%emt 0:00:23]} 0-1

[Event "EYTCC U12 Open 2019"]
[Site "Pardubice"]
[Date "2019.07.12"]
[Round "2.10"]
[White "Tran, David"]
[Black "Winter, Ondrej"]
[Result "0-1"]
[ECO "B38"]
[WhiteElo "2112"]
[BlackElo "1725"]
[Annotator "NA"]
[PlyCount "60"]
[EventDate "2019.07.11"]
[EventType "swiss"]
[EventCountry "CZE"]
[SourceTitle "playchess.com"]
[Source "ChessBase"]
[SourceQuality "1"]
[WhiteTeam "Hungary"]
[BlackTeam "Czech Republic"]
[WhiteTeamCountry "HUN"]
[BlackTeamCountry "CZE"]
[TimeControl "40/5400+30:1800+30"]

1. e4 {[%emt 0:00:00]} c5 {[%emt 0:00:00]} 2. Nf3 {[%emt 0:00:00]} Nc6 {[%emt 0:00:00]} 3. d4 {[%emt 0:00:00]} cxd4 {[%emt 0:00:00]} 4. Nxd4 {[%emt 0:00:02]} g6 {[%emt 0:00:05]} 5. c4 {[%emt 0:00:10]} Bg7 {[%emt 0:00:07]} 6. Be3 {[%emt 0:00:08]} Nf6 {[%emt 0:00:31]} 7. Nc3 {[%emt 0:00:18]} O-O {[%emt 0:00:21]} 8. Be2 {[%emt 0:00:41]} d6 {[%emt 0:01:04]} 9. O-O {[%emt 0:01:14]} Bd7 {[%emt 0:00:17]} 10. Rc1 {[%emt 0:01:46]} Nxd4 {[%emt 0:00:27]} 11. Bxd4 {[%emt 0:00:19]} Bc6 {[%emt 0:00:06]} 12. f3 {[%emt 0:01:17]} a5 {[%emt 0:00:18]} 13. Qd2 {[%emt 0:02:25]} Nd7 {[%emt 0:00:38]} 14. Be3 {[%emt 0:00:41]} Be5 {[%emt 0:01:38]} 15. Rfd1 {[%emt 0:06:17]} Nc5 {[%emt 0:00:53]} 16. b3 {[%emt 0:06:33]} e6 {[%emt 0:01:04]} 17. Qc2 {[%emt 0:04:30]} Qh4 {[%emt 0:02:10]} 18. g3 {[%emt 0:01:27]} Bxg3 {[%emt 0:00:49]} 19. hxg3 {[%emt 0:00:23]} Qxg3+ {[%emt 0:00:07]} 20. Kf1 {[%emt 0:02:52]} f5 {[%emt 0:01:04]} 21. Bxc5 {[%emt 0:04:39]} dxc5 {[%emt 0:00:55]} 22. Qd3 {[%emt 0:00:10]} g5 {[%emt 0:09:16]} 23. exf5 {[%emt 0:05:47]} Rxf5 {[%emt 0:06:38]} 24. Ne4 {[%emt 0:03:29]} Qf4 {[%emt 0:07:39]} 25. Kg2 {[%emt 0:18:36]} Raf8 {[%emt 0:10:31]} 26. Rf1 {[%emt 0:09:48]} g4 {[%emt 0:04:28]} 27. Rce1 {[%emt 0:04:20]} Kh8 {[%emt 0:02:03]} 28. Qd2 {[%emt 0:15:33]} gxf3+ {[%emt 0:05:59]} 29. Bxf3 {[%emt 0:00:05]} Rg8+ {[%emt 0:00:19]} 30. Kh3 {[%emt 0:01:23]} Qxf3+ {[%emt 0:00:28]} 0-1